Cogmind - Beta 17 @@@ ROGUE MODE // 2026.06.23 @ 11:53:28 Player: Minty Result: Destroyed by S-27 Virus with Autogun Performance ------------- Evolutions (6) 3000 Regions Visited (15) 3000 Robots Destroyed (89) 445 Value Destroyed (2827) 2827 Prototype IDs (44) 880 Alien Tech Used (0) 0 Bonus (10432) 10432 TOTAL SCORE: 20584 Bonus ------- Prayed to X0-1V1 5000 Major X0-1V1 Interference 4500 Entered Garrisons 200 Entered DSFs 500 Met Data Miner 300 Friendly Fire -68 Cogmind --------- Core Integrity 0/1225 Matter 221/300 Energy 99/100 System Corruption 37% Temperature Cool (0) Movement Core (50) Location -4/Factory Parts ------- > --- POWER (2) -------- (None) > --- PROPULSION (6) --- (None) > --- UTILITY (8) ------ Graphene Brace (fused) System Shield (fused) Self-contained Transmogrifier X0-1V1's Piety Tracker > --- WEAPON (3) ------- (None) > --- INVENTORY (5) ---- Light Quantum Reactor Dispersion Rifle Compact Tesla Bomb Launcher Micro-nuke Launcher Peak State ------------ > --- POWER ------------ Heavy Deuterium Engine Reinforced Antimatter Reactor > --- PROPULSION ------- Linear Gravjet Linear Gravjet Linear Gravjet Linear Gravjet Combat Gravmag System Combat Gravmag System > --- UTILITY ---------- Advanced Heat Sink Improved Cooling System Improved Cooling System Gun Armor Advanced Hacking Suite Self-contained Transmogrifier X0-1V1's Piety Tracker > --- WEAPON ----------- Plasma Rifle Advanced Plasma Cannon > --- INVENTORY -------- Makeshift Power Source Micro Fission Core Combat Gravmag System Combat Gravmag System [Rating: 111] Favorites ----------- Power Ion Engine Engine Ion Engine Power Core Enhanced Fission Core Reactor Reinforced Antimatter Reactor Propulsion Light Treads Treads Light Treads Leg Myomer Leg Hover Unit Combat Gravmag System Flight Unit Improved Flight Unit Utility X0-1V1's Piety Tracker Device X0-1V1's Piety Tracker Storage Small Storage Unit Processor Terrain Scan Processor Hackware Advanced Hacking Suite Protection Gun Armor Weapon Heavy Assault Rifle Energy Gun Precision Beam Rifle Energy Cannon Long-range Proton Cannon Ballistic Gun Heavy Assault Rifle Launcher Rocket Launcher Special Weapon Remote Datajack Slashing Weapon Great Axe Build | -11 -10 -10 -10 -8 -7 -6 -6 -6 -6 -5 -5 -5 -4 -4 -4 ------- Run | Yrd Mat Min Sub Mat Fac Fac Low Low Dat Pro Fac DSF Fac Gar Fac Slots Evolved 12 | . . . . 4 2 2 . . . . 2 . 2 . . Power . | . . . . . . . . . . . . . . . . Propulsion 3 | . . . . 1 . 1 . . . . 1 . . . . Utility 7 | . . . . 2 2 1 . . . . 1 . 1 . . Weapon 2 | . . . . 1 . . . . . . . . 1 . . Parts Attached 105 | . 6 2 1 19 12 7 2 4 1 2 . 21 10 2 16 Power 15 | . . . . 4 1 . 1 1 . . . 1 2 . 5 Engine 7 | . . . . 3 1 . . 1 . . . . 1 . 1 Core 7 | . . . . 1 . . 1 . . . . 1 1 . 3 Reactor 1 | . . . . . . . . . . . . . . . 1 Propulsion 32 | . 2 . 1 7 3 1 . . . . . 14 1 . 3 Treads 3 | . 2 . . . . . . . . . . . . . 1 Leg 4 | . . . 1 2 . . . . . . . . . . 1 Wheel . | . . . . . . . . . . . . . . . . Hover 23 | . . . . 4 3 1 . . . . . 14 1 . . Flight 2 | . . . . 1 . . . . . . . . . . 1 Utility 31 | . 1 . . 4 5 3 . 3 1 1 . 5 4 2 2 Device 21 | . 1 . . 2 2 2 . 2 1 . . 4 3 2 2 Storage 1 | . . . . 1 . . . . . . . . . . . Processor 3 | . . . . . . 1 . 1 . . . . 1 . . Hackware 3 | . . . . . 2 . . . . 1 . . . . . Protection 3 | . . . . 1 1 . . . . . . 1 . . . Artifact . | . . . . . . . . . . . . . . . . Weapon 27 | . 3 2 . 4 3 3 1 . . 1 . 1 3 . 6 Energy Gun 5 | . . . . 1 2 . . . . 1 . . . . 1 Energy Cannon 3 | . . . . . . . . . . . . 1 . . 2 Ballistic Gun 11 | . 2 1 . 3 . 2 . . . . . . 3 . . Ballistic Cannon . | . . . . . . . . . . . . . . . . Launcher 6 | . 1 1 . . 1 . 1 . . . . . . . 2 Special Weapon 1 | . . . . . . 1 . . . . . . . . . Impact Weapon . | . . . . . . . . . . . . . . . . Slashing Weapon 1 | . . . . . . . . . . . . . . . 1 Piercing Weapon . | . . . . . . . . . . . . . . . . Special Melee Weapon . | . . . . . . . . . . . . . . . . Unidentified Prototypes 9 | . 1 . . 3 4 . . . . . . . . . 1 Corrupted Parts 3 | . . . . 2 . . . . . . . . . . 1 System Corruption 19 | . . . . 8 . . . . . . . . . . 11 Parts Lost 57 | . . . . 5 1 . . 4 . 1 . 10 19 3 14 Power 11 | . . . . 1 . . . . . . . 2 4 . 4 Propulsion 16 | . . . . . . . . 2 . . . 1 6 2 5 Utility 14 | . . . . 1 . . . 1 . . . 4 5 1 2 Weapon 16 | . . . . 3 1 . . 1 . 1 . 3 4 . 3 Highest Loss Streak 9 | . . . . 3 1 . . 2 . 1 . 6 9 2 9 To Critical Strikes . | . . . . . . . . . . . . . . . . Average Backups 5 | . 7 8 7 7 7 5 5 4 5 4 5 4 3 1 1 Power . | . 1 1 . . . . . 1 2 2 2 1 . . . Propulsion . | . 1 . . . 2 3 3 1 . . . . 2 1 . Utility . | . . . . 2 . . . . . . 1 . . . . Weapon 3 | . 5 7 6 3 3 2 1 2 3 2 2 1 . . . Tool/Special . | . . . . . . . . . . . . . . . . Unused Backups 10 | . 4 . 2 1 2 1 . . . . . . . . . Power . | . . . . . . . . . . . . . . . . Propulsion 1 | . . . . 1 . . . . . . . . . . . Utility 1 | . . . . . 1 . . . . . . . . . . Weapon 8 | . 4 . 2 . 1 1 . . . . . . . . . Tool/Special . | . . . . . . . . . . . . . . . . Average Slot Usage (%) 87 | . 87 100 100 95 91 91 98 96 84 86 76 86 85 26 40 Engine 6 | . 14 14 14 5 3 3 . 3 . . . 2 1 . . Core 2 | . . . . 4 6 5 10 8 . . . . 4 . 4 Treads 9 | . 19 28 20 2 . . . . . . . . . . 4 Leg 3 | . 8 . 7 15 . . . . . . . . . . . Hover 12 | . . . . 7 27 29 29 30 26 26 23 29 30 8 2 Device 16 | . 2 14 14 22 19 22 23 23 24 26 23 23 24 6 13 Storage 6 | . 14 14 14 9 6 . . . . . . . . . . Processor 1 | . . . . . . 4 5 4 6 4 . . 3 5 . Hackware 1 | . . . . . 5 . . . . 1 5 5 5 5 4 Protection 2 | . . . . 2 3 5 5 5 6 6 5 5 4 . . Energy Gun 2 | . 3 . . 2 9 9 5 5 6 6 5 4 . . . Ballistic Gun 14 | . 23 27 25 21 4 . . 5 6 6 5 2 7 . . Launcher 1 | . 1 . 2 . 3 5 10 1 . . . . . . . Peak Build Rating 111 | . 22 22 29 61 76 89 87 89 76 81 81 111 109 48 72 Average Rating 51 | . 10 22 25 52 67 85 85 84 74 77 81 97 96 33 51 On Entrance 53 | 6 6 22 22 29 55 71 87 87 63 76 81 81 99 31 42 Avg Prop Armor Cover (%) 13 | . . . 10 7 . . . . . . . . 15 16 16 Naked Turns . | . . . . . . . . . . . . . . . . Heaviest Build 58 | 14 17 18 18 31 33 42 41 44 35 39 37 58 33 1 32 Greatest Support 84 | 20 40 40 40 63 36 41 41 46 35 38 38 84 82 18 57 Greatest Overweight (x) 2 | . . . . 2 . 1 . 1 . 1 . 1 . . 1 Average Overweight (x) . | . . . . . . . . . . . . . . . . Largest Inventory Capacity 8 | . 8 8 8 8 8 8 5 5 5 5 5 5 5 5 5 Average Capacity 6 | . 8 8 8 8 8 5 5 5 5 5 5 5 5 5 5 Most Carried 8 | . 8 8 8 8 8 7 5 5 5 5 5 5 5 2 4 Average Carried 5 | . 7 7 7 7 7 5 4 4 5 4 5 4 3 1 1 Final Capacity 8 | 8 8 8 8 8 8 5 5 5 5 5 5 5 5 5 5 Final Carried 8 | 6 8 8 7 8 8 5 5 5 5 5 5 4 2 . 4 Transmogrified Parts 27 | . . . . 5 . 3 2 7 . 1 . 1 4 . 4 Integrity Recovered 693 | . . . . 182 . 48 30 192 . 7 . . 36 . 198 Class Distribution -------------------- 62% | Mutant 14% | Gunner 5% | Tank 5% | Scavenger-Tank 3% | Scavenger-Skirmisher 3% | Derelict-Mutant Dominant Class ---------------- Mutant | -10/Materials Mutant | -10/Mines Mutant | -10/Subcaves Tank | -8/Materials Gunner | -7/Factory Skirmisher | -6/Factory Gunner | -6/Lower Caves Gunner | -6/Lower Caves Mutant | -6/Data Miner Derelict-Mutant | -5/Proximity Caves Derelict-Mutant | -5/Factory Mutant | -5/DSF Mutant | -4/Factory Mutant | -4/Garrison Mutant | -4/Factory Resources | -11 -10 -10 -10 -8 -7 -6 -6 -6 -6 -5 -5 -5 -4 -4 -4 ----------- Run | Yrd Mat Min Sub Mat Fac Fac Low Low Dat Pro Fac DSF Fac Gar Fac Matter Collected 2961 | 200 221 131 63 552 316 228 71 423 . 98 . 188 288 71 111 Remotely . | . . . . . . . . . . . . . . . . Salvage Created 3392 | . 294 146 62 695 312 276 66 228 . 92 . 180 439 . 602 Parts 184 | . 24 5 2 53 22 10 2 16 . 8 . 5 13 . 24 Haulers Intercepted 3 | . . . . 1 1 . . . . . . . 1 . . Recyclers Shooed 3 | . . . . . 2 1 . . . . . . . . . Parts Field Recycled . | . . . . . . . . . . . . . . . . Retrieved Matter . | . . . . . . . . . . . . . . . . Parts Self-Destructed 28 | . . . 6 . . . 2 12 . 8 . . . . . Prevented . | . . . . . . . . . . . . . . . . Parts Restored . | . . . . . . . . . . . . . . . . Kills | -11 -10 -10 -10 -8 -7 -6 -6 -6 -6 -5 -5 -5 -4 -4 -4 ------- Run | Yrd Mat Min Sub Mat Fac Fac Low Low Dat Pro Fac DSF Fac Gar Fac Combat Hostiles Destroyed 64 | . 8 5 1 9 3 3 2 11 . 4 . 3 5 . 10 Melee 2 | . . . . . . . . . . . . . . . 2 Guns 37 | . 8 5 1 8 2 3 . 4 . 4 . . 2 . . Cannons 6 | . . . . . . . . . . . . 1 3 . 2 AOE 17 | . . . . 1 1 . 2 7 . . . . . . 6 Classes Destroyed 15 | . 5 . 2 6 . . . 1 . . . 1 . . . Worker 5 | . 1 . . . . 3 . . . . . . . . 1 Builder 7 | . . . . 2 5 . . . . . . . . . . Tunneler 2 | . 1 . . 1 . . . . . . . . . . . Hauler 3 | . . . . 1 1 . . . . . . . 1 . . Recycler 4 | . 1 . . . 1 . . . . . . . . . 2 Operator 2 | . . . . 2 . . . . . . . . . . . Watcher 2 | . . . . 1 1 . . . . . . . . . . Swarmer 30 | . 6 3 . . . . . 8 . 4 . . 4 . 5 Grunt 15 | . 2 2 . 3 1 . . 2 . . . . 1 . 4 Sentry 9 | . . . . 3 2 3 1 . . . . . . . . Specialist 3 | . . . . . . . . . . . . 3 . . . Hunter 4 | . . . . 3 . . 1 . . . . . . . . Programmer 2 | . . . . . . . . 1 . . . . . . 1 Artisan 1 | . . . 1 . . . . . . . . . . . . Subdweller 1 | . . . 1 . . . . . . . . . . . . Best Kill Streak 7 | . 3 3 1 6 7 2 1 4 . 4 . 2 3 . 5 Combat Bots Only 4 | . 3 3 1 3 1 2 1 4 . 4 . 2 3 . 4 Max Kills in Single Turn 3 | . 2 1 1 1 2 1 1 3 . 1 . 1 1 . 3 Gunslinging . | . . . . . . . . . . . . . . . . Exploded 3 | . . . . 1 1 . 1 3 . . . . . . 3 Melee 1 | . . . . . . . . . . . . . . . 1 Uniques/NPCs Destroyed . | . . . . . . . . . . . . . . . . Combat | -11 -10 -10 -10 -8 -7 -6 -6 -6 -6 -5 -5 -5 -4 -4 -4 -------- Run | Yrd Mat Min Sub Mat Fac Fac Low Low Dat Pro Fac DSF Fac Gar Fac Hostile Shots Fired 824 | . 39 27 1 97 51 48 30 50 . 17 . 97 204 16 147 Missed 328 | . 14 9 1 32 25 27 16 20 . 7 . 27 85 9 56 Hits 496 | . 25 18 . 65 26 21 14 30 . 10 . 70 119 7 91 Melee 4 | . . . . . . . . . . . . 2 . . 2 Projectile 492 | . 25 18 . 65 26 21 14 30 . 10 . 68 119 7 89 Critical Strikes 19 | . . . . 1 . . . 1 . . . 2 5 1 9 Actively Blocked 8 | . . . . . . . . . . . . . . . 8 Part Disruptions 1 | . . . . . . . . . . . . . 1 . . Damage Taken 8661 | . 319 214 48 1068 312 154 137 510 . 153 . 1451 2070 287 1938 Core 1785 | . 56 37 16 97 32 15 39 28 . 12 . 215 416 182 640 Absorbed by Shields 66 | . . . . . . . . 66 . . . . . . . Regen/Repaired (Parts) 58 | . . . . 58 . . . . . . . . . . . Core Remaining (%) 88 | 100 . . 85 84 95 . . . . 89 . 80 . . . Volleys Fired 254 | . 29 16 4 45 23 19 7 20 . 14 . 28 32 . 17 Largest 3 | . 2 2 2 3 3 2 3 3 . 2 . 2 3 . 2 Hottest 181 | . 70 46 46 120 155 122 127 119 . 100 . 173 121 . 181 Shots Fired 526 | . 55 30 6 121 57 37 18 42 . 28 . 51 62 . 19 Gun 424 | . 51 28 4 112 46 36 5 32 . 28 . 35 46 . 1 Cannon 44 | . . . . . . . . . . . . 15 16 . 13 Launcher 51 | . 4 2 2 9 11 . 11 10 . . . 1 . . 1 Special 7 | . . . . . . 1 2 . . . . . . . 4 Kinetic 292 | . 38 28 4 109 18 . . 17 . 15 . 17 46 . . Thermal 167 | . 13 . . 3 28 36 5 15 . 13 . 33 16 . 5 Explosive 43 | . 4 2 2 1 11 . 11 10 . . . 1 . . 1 Electromagnetic 21 | . . . . 8 . . . . . . . . . . 13 Robot Hit Streak 20 | . 6 6 7 9 12 20 8 15 . 3 . 11 16 . 20 Robot Miss Streak 5 | . 3 2 . 4 3 1 1 1 . 4 . 3 4 . 5 Penetration Max 1 | . . . . 1 . . . . . . . . . . . Secondary Targets 7 | . 3 2 . 1 . 1 . . . . . . . . . Max Gunslinging Chain 1 | . 1 1 . 1 . 1 . . . . . . . . . Shots Hit Robots 345 | . 30 19 4 72 41 30 12 31 . 11 . 39 40 . 16 Core Hits 173 | . 15 9 4 35 22 12 9 17 . 7 . 5 13 . 25 Critical Kills 2 | . 1 . . . . . . . . . . 1 . . . Critical Parts Destroyed 1 | . . . . . 1 . . . . . . . . . . Critical Strikes 14 | . 1 . . . 4 1 . 3 . . . 3 . . 2 Burn 9 | . . . . . 3 1 . 3 . . . 2 . . . Meltdown 1 | . . . . . . . . . . . . 1 . . . Destroy 2 | . 1 . . . 1 . . . . . . . . . . Sever 2 | . . . . . . . . . . . . . . . 2 Melee Attacks 7 | . . . . . . . . . . . . . . . 7 Impact . | . . . . . . . . . . . . . . . . Slashing 7 | . . . . . . . . . . . . . . . 7 Piercing . | . . . . . . . . . . . . . . . . Sneak Attacks 1 | . . . . . . . . . . . . . . . 1 Combat Hostiles . | . . . . . . . . . . . . . . . . Follow-up Attacks . | . . . . . . . . . . . . . . . . Damage Inflicted 9353 | . 530 321 154 1457 987 514 264 1236 . 194 . 947 893 18 1838 Guns 4653 | . 438 286 62 1090 579 514 68 454 . 194 . 513 428 . 27 Cannons 974 | . . . . . . . . . . . . 353 365 . 256 Explosions 3390 | . 92 . 92 367 408 . 196 782 . . . 81 100 . 1272 Melee 248 | . . . . . . . . . . . . . . . 248 Ramming 62 | . . 35 . . . . . . . . . . . 18 9 Kinetic 2846 | . 324 286 62 1051 205 . . 184 . 95 . 211 428 . . Thermal 3141 | . 114 . . 70 374 514 68 270 . 99 . 655 465 . 512 Explosive 2490 | . 92 . 92 26 408 . 196 782 . . . 81 . . 813 Electromagnetic 566 | . . . . 310 . . . . . . . . . . 256 Impact . | . . . . . . . . . . . . . . . . Slashing 248 | . . . . . . . . . . . . . . . 248 Piercing . | . . . . . . . . . . . . . . . . Highest Corruption 37 | . . . . 8 . . . 1 1 1 . 4 6 7 37 Average Corruption 6 | . . . . 7 . . . 1 1 1 . 2 3 6 12 Corruption Purged . | . . . . . . . . . . . . . . . . Corruption Blocked . | . . . . . . . . . . . . . . . . Effects 43 | . . . . 15 . . . . . 1 . 2 6 2 17 Message Errors 10 | . . . . 5 . . . . . 1 . . . 1 3 Matter Fused 10 | . . . . 3 . . . . . . . . 2 1 4 Heat Flow Errors 2 | . . . . 1 . . . . . . . 1 . . . Energy Discharges 7 | . . . . 2 . . . . . . . 1 2 . 2 Parts Rejected 1 | . . . . . . . . . . . . . . . 1 Data Loss (minor) 5 | . . . . 3 . . . . . . . . . . 2 Data Loss (major) 2 | . . . . 1 . . . . . . . . . . 1 Misfires 1 | . . . . . . . . . . . . . 1 . . Alerts 2 | . . . . . . . . . . . . . 1 . 1 Misdirections 3 | . . . . . . . . . . . . . . . 3 Overload Shots . | . . . . . . . . . . . . . . . . Overflow Damage 205 | . . . . . 17 . . . . . . 14 37 . 137 Projectiles 37 | . . . . . . . . . . . . . 37 . . Explosions 168 | . . . . . 17 . . . . . . 14 . . 137 Melee . | . . . . . . . . . . . . . . . . Knockbacks . | . . . . . . . . . . . . . . . . Impact . | . . . . . . . . . . . . . . . . Kinetic . | . . . . . . . . . . . . . . . . Secondary . | . . . . . . . . . . . . . . . . Self-Inflicted Damage 513 | . 65 28 49 6 85 . . 67 . . . 49 . 18 146 Shots 13 | . 2 1 2 1 2 . . 2 . . . 1 . . 2 Rammed 14 | . . 8 . . . . . . . . . . . . 6 Targets Rammed 16 | . . 8 . . . . . . . . . . . . 8 Kicked 1 | . . . . . . . . . . . . . . . 1 Crushed 1 | . . . . . . . . . . . . . . . 1 Highest Temperature 291 | . 63 . . 291 3 21 1 71 . . . 183 50 . 48 Average Temperature 44 | . 21 . . 105 1 11 1 30 . . . 49 19 . 18 Received Heat Transfer 1186 | . 60 42 . 135 93 42 24 27 . . . . 448 42 273 Siege Activations . | . . . . . . . . . . . . . . . . Martial Activations . | . . . . . . . . . . . . . . . . Shielding Activations . | . . . . . . . . . . . . . . . . Robots Disrupted . | . . . . . . . . . . . . . . . . Combat Hostiles . | . . . . . . . . . . . . . . . . Robots Corrupted . | . . . . . . . . . . . . . . . . Combat Hostiles . | . . . . . . . . . . . . . . . . Parts Fried 5 | . . . . . . . . . . . . . . . 5 Impact Corruptions . | . . . . . . . . . . . . . . . . Robots Melted 1 | . . . . . . . . . . . . 1 . . . Combat Hostiles 1 | . . . . . . . . . . . . 1 . . . Parts Melted 23 | . 1 . 1 . 3 6 . 5 . . . 4 3 . . Heat Transferred 6286 | . 333 . . 124 1036 1184 148 740 . 224 . 1350 600 . 547 Parts Sabotaged . | . . . . . . . . . . . . . . . . Parts Stolen . | . . . . . . . . . . . . . . . . Parts Stripped . | . . . . . . . . . . . . . . . . Power Chain Reactions 2 | . . . . 2 . . . . . . . . . . . Alert | -11 -10 -10 -10 -8 -7 -6 -6 -6 -6 -5 -5 -5 -4 -4 -4 ------- Run | Yrd Mat Min Sub Mat Fac Fac Low Low Dat Pro Fac DSF Fac Gar Fac Maximum Alert Level 1 | . . . . . . . . . . . . . . . 1 Low Security (%) 96 | . 100 100 . 100 100 100 . . . . 100 100 100 100 70 Level 1 3 | . . . . . . . . . . . . . . . 29 Level 2 . | . . . . . . . . . . . . . . . . Level 3 . | . . . . . . . . . . . . . . . . Level 4 . | . . . . . . . . . . . . . . . . Level 5 . | . . . . . . . . . . . . . . . . High Security . | . . . . . . . . . . . . . . . . Max Security . | . . . . . . . . . . . . . . . . Peak Influence 325 | . 115 70 . 92 117 106 . . . . 12 57 123 29 325 Initial 51 | . . 19 . . 18 51 . . . . 12 10 18 9 9 Average 43 | . 39 13 . 30 70 66 . . . . 12 26 55 12 108 Influence Increases 2559 | . 319 117 . 318 219 135 50 255 . 90 3 105 329 44 575 Destroy 0b10 Robot/C 1260 | . 160 100 . 180 60 60 40 220 . 80 . 60 100 . 200 Destroy 0b10 Robot/NC 125 | . 15 . . 35 40 15 . . . . . . 5 . 15 Destroy Leader 230 | . 30 10 . 54 24 30 10 20 . 10 . 10 22 . 10 Allied During Kill 4 | . . . . . . 4 . . . . . . . . . Successful Hack 110 | . 28 . . 3 23 25 . . . . 3 . 14 14 . Disable Machine 270 | . . . . 30 15 . . . . . . . 75 . 150 Destroy Structure 245 | . 26 7 . 16 57 1 . . . . . 20 8 . 110 Partial Spotted 30 | . 15 . . . . . . . . . . . . 15 . Lose Combat Pursuer 285 | . 45 . . . . . . 15 . . . 15 105 15 90 Influence Decreases 2244 | . 269 166 1 277 153 156 122 184 85 70 8 83 352 39 279 Entered New Map 279 | . . 31 1 . 23 56 32 4 85 . 8 5 19 5 10 Time Decay 1439 | . 269 135 . 237 120 80 70 140 . 60 . . 198 . 130 Lost Part 462 | . . . . 40 10 . . 40 . 10 . 78 135 10 139 Lost Ally 64 | . . . . . . 20 20 . . . . . . 24 . Squads Dispatched 25 | . 1 . . 4 4 2 . . . . 1 2 6 . 5 Investigation 9 | . 1 . . 2 . 1 . . . . 1 . 3 . 1 Extermination 4 | . . . . . 1 . . . . . . . 2 . 1 Reinforcement 8 | . . . . 2 2 . . . . . . 2 1 . 1 Assault . | . . . . . . . . . . . . . . . . Garrison 4 | . . . . . 1 1 . . . . . . . . 2 Intercept . | . . . . . . . . . . . . . . . . Searches Triggered . | . . . . . . . . . . . . . . . . Data Miner Redirects 1 | . . . . . . . . . . . . . 1 . . Construction Impeded 1 | . . . . . 1 . . . . . . . . . . Haulers Reinforced 1 | . . . . . 1 . . . . . . . . . . Active Scanning Responses . | . . . . . . . . . . . . . . . . Cargo Convoy Interrupts . | . . . . . . . . . . . . . . . . Stealth | -11 -10 -10 -10 -8 -7 -6 -6 -6 -6 -5 -5 -5 -4 -4 -4 --------- Run | Yrd Mat Min Sub Mat Fac Fac Low Low Dat Pro Fac DSF Fac Gar Fac Distress Signals 5 | . 2 . . 1 . . . . . . . . . . 2 Communications Jammed 1 | . . . . . . . . 1 . . . . . . . Distress Signals 1 | . . . . . . . . 1 . . . . . . . Times Spotted 136 | . 17 6 1 13 4 3 2 17 . 4 . 8 31 5 25 Peak Tracking Total 14 | . 4 3 1 3 1 2 1 4 . 1 . 3 14 3 8 Tactical Retreats 14 | . 3 . . . . . . 1 . . . 1 4 1 4 Traps | -11 -10 -10 -10 -8 -7 -6 -6 -6 -6 -5 -5 -5 -4 -4 -4 ------- Run | Yrd Mat Min Sub Mat Fac Fac Low Low Dat Pro Fac DSF Fac Gar Fac Traps Triggered 2 | . 1 . . . . . . . . . . . 1 . . Indirectly . | . . . . . . . . . . . . . . . . Trap Hack Attempts . | . . . . . . . . . . . . . . . . Triggered . | . . . . . . . . . . . . . . . . Disarmed . | . . . . . . . . . . . . . . . . Reprogrammed . | . . . . . . . . . . . . . . . . Reused . | . . . . . . . . . . . . . . . . Traps Extracted . | . . . . . . . . . . . . . . . . Installed . | . . . . . . . . . . . . . . . . Triggered . | . . . . . . . . . . . . . . . . Machines | -11 -10 -10 -10 -8 -7 -6 -6 -6 -6 -5 -5 -5 -4 -4 -4 ---------- Run | Yrd Mat Min Sub Mat Fac Fac Low Low Dat Pro Fac DSF Fac Gar Fac Machines Disabled 20 | . . . 2 2 1 . . . . . . . 5 . 10 Max in Single Turn 5 | . . . 2 1 1 . . . . . . . 5 . 4 Garrison Access 1 | . . . . . 1 . . . . . . . . . . Machines Repaired . | . . . . . . . . . . . . . . . . Machines Dismantled . | . . . . . . . . . . . . . . . . Machines Sabotaged . | . . . . . . . . . . . . . . . . Overloaded Fab Kills . | . . . . . . . . . . . . . . . . Hacking | -11 -10 -10 -10 -8 -7 -6 -6 -6 -6 -5 -5 -5 -4 -4 -4 --------- Run | Yrd Mat Min Sub Mat Fac Fac Low Low Dat Pro Fac DSF Fac Gar Fac Machines Accessed 31 | . 5 . 1 3 4 3 1 1 4 . 2 . 4 1 2 Terminals 14 | . 5 . . 2 2 2 . . . . 1 . 1 1 . Fabricators 6 | . . . . . 1 1 . . . . 1 . 2 . 1 Repair Stations 1 | . . . . 1 . . . . . . . . . . . Recycling Units 1 | . . . . . . . . . . . . . . . 1 Scanalyzers . | . . . . . . . . . . . . . . . . Garrison Access 2 | . . . . . 1 . . . . . . . 1 . . Total Hacks 92 | . 15 . 1 8 7 12 1 1 26 . 4 . 11 2 4 Successful 61 | . 8 . 1 4 6 8 1 1 26 . 2 . 1 1 2 Failed 31 | . 7 . . 4 1 4 . . . . 2 . 10 1 2 Catastrophic 5 | . . . . 1 . . . . . . . . 2 1 1 Database Lockouts . | . . . . . . . . . . . . . . . . Manual 23 | . 14 . . . 1 5 . . . . . . 2 1 . Terminals 40 | . 15 . . 6 4 9 . . . . 1 . 3 2 . Fabricators 15 | . . . . . 2 3 . . . . 3 . 4 . 3 Repair Stations 2 | . . . . 2 . . . . . . . . . . . Recycling Units 1 | . . . . . . . . . . . . . . . 1 Scanalyzers . | . . . . . . . . . . . . . . . . Garrison Access 5 | . . . . . 1 . . . . . . . 4 . . Terminal Hacks 49 | . 8 . 1 2 3 5 1 1 26 . 1 . . 1 . Record 11 | . . . . . . . . . 11 . . . . . . Part Schematic 8 | . . . . . . . . . 8 . . . . . . Robot Schematic 4 | . . . . . . . . . 4 . . . . . . Robot Analysis 1 | . 1 . . . . . . . . . . . . . . Prototype ID Bank 6 | . 2 . . . 1 . . . 3 . . . . . . Open Door 2 | . . . . . . . 1 1 . . . . . . . Open DSF 2 | . . . . . 1 . . . . . 1 . . . . Emergency Access Points 2 | . 1 . . . . . . . . . . . . 1 . Alert Level 4 | . . . . 2 . 2 . . . . . . . . . Locate Traps 1 | . . . . . . 1 . . . . . . . . . Dispatch Records 1 | . . . . . 1 . . . . . . . . . . Maintenance Status 1 | . 1 . . . . . . . . . . . . . . Hauler Manifests 1 | . . . . . . 1 . . . . . . . . . Zone Layout 4 | . 3 . . . . 1 . . . . . . . . . Proto ID Catalog 1 | . . . 1 . . . . . . . . . . . . Fabricator Hacks 4 | . . . . . 1 1 . . . . 1 . . . 1 Network Status 2 | . . . . . 1 1 . . . . . . . . . Load Schematic 2 | . . . . . . . . . . . 1 . . . 1 Repair Station Hacks 2 | . . . . 2 . . . . . . . . . . . Scan Component 1 | . . . . 1 . . . . . . . . . . . Repair 1 | . . . . 1 . . . . . . . . . . . Recycling Unit Hacks 1 | . . . . . . . . . . . . . . . 1 Report Inventory 1 | . . . . . . . . . . . . . . . 1 Scanalyzer . | . . . . . . . . . . . . . . . . Garrison Access Hacks 2 | . . . . . 1 . . . . . . . 1 . . Unlock Access 1 | . . . . . . . . . . . . . 1 . . Seal Access 1 | . . . . . 1 . . . . . . . . . . Unauthorized Hacks 3 | . . . . . 1 2 . . . . . . . . . Terminals 1 | . . . . . . 1 . . . . . . . . . Botnet 1 | . . . . . . 1 . . . . . . . . . Fabricators 2 | . . . . . 1 1 . . . . . . . . . Fabnet 2 | . . . . . 1 1 . . . . . . . . . Repair Stations . | . . . . . . . . . . . . . . . . Recycling Units . | . . . . . . . . . . . . . . . . Scanalyzers . | . . . . . . . . . . . . . . . . Garrison Access . | . . . . . . . . . . . . . . . . Data Cores Recovered 1 | . . . . 1 . . . . . . . . . . . Used . | . . . . . . . . . . . . . . . . Hacking Detections 19 | . 4 . . 2 3 3 . . . . 1 . 4 1 1 Full Trace Events 8 | . 1 . . 1 . 1 . . . . 1 . 3 . 1 Feedback Events 1 | . . . . . . . . . . . . . 1 . . Corruption 1 | . . . . . . . . . . . . . 1 . . Feedback Blocked . | . . . . . . . . . . . . . . . . Robot Schematics Acquired 4 | . . . . . . . . . 4 . . . . . . Robots Built . | . . . . . . . . . . . . . . . . Authchips . | . . . . . . . . . . . . . . . . Time . | . . . . . . . . . . . . . . . . Total Robot Build Rating . | . . . . . . . . . . . . . . . . Part Schematics Acquired 8 | . . . . . . . . . 8 . . . . . . Parts Built . | . . . . . . . . . . . . . . . . Authchips . | . . . . . . . . . . . . . . . . Time . | . . . . . . . . . . . . . . . . Total Part Build Rating . | . . . . . . . . . . . . . . . . Part Studies Acquired . | . . . . . . . . . . . . . . . . Parts Repaired 1 | . . . . 1 . . . . . . . . . . . Time 26 | . . . . 26 . . . . . . . . . . . Parts Recycled . | . . . . . . . . . . . . . . . . Recycled Matter . | . . . . . . . . . . . . . . . . Retrieved Matter . | . . . . . . . . . . . . . . . . Retrieved Components . | . . . . . . . . . . . . . . . . Parts Scanalyzed . | . . . . . . . . . . . . . . . . Part Schematics Acquired . | . . . . . . . . . . . . . . . . Parts Damaged . | . . . . . . . . . . . . . . . . Bothacking | -11 -10 -10 -10 -8 -7 -6 -6 -6 -6 -5 -5 -5 -4 -4 -4 ------------ Run | Yrd Mat Min Sub Mat Fac Fac Low Low Dat Pro Fac DSF Fac Gar Fac Used RIF Installer . | . . . . . . . . . . . . . . . . Robots Hacked 1 | . . . . . . . 1 . . . . . . . . Non-combat 1 | . . . . . . . 1 . . . . . . . . Combat . | . . . . . . . . . . . . . . . . Robot Hacks Applied 1 | . . . . . . . 1 . . . . . . . . parse_system 1 | . . . . . . . 1 . . . . . . . . Relay Couplers Released . | . . . . . . . . . . . . . . . . Fabnet Peak Effective % 4 | . . . . . . 3 3 3 3 4 4 4 1 1 1 Robots Rewired 2 | . . . . . . 2 . . . . . . . . . Allies Hacked . | . . . . . . . . . . . . . . . . Hacks Repelled . | . . . . . . . . . . . . . . . . Allies | -11 -10 -10 -10 -8 -7 -6 -6 -6 -6 -5 -5 -5 -4 -4 -4 -------- Run | Yrd Mat Min Sub Mat Fac Fac Low Low Dat Pro Fac DSF Fac Gar Fac Total Allies 4 | . . . . . . 2 . . . . . . . 2 . Largest Group 2 | . . . . . . 2 . . . . . . . 2 . Highest-Rated Group 75 | . . . . . . 32 . . . . . . . 75 . Highest-Rated Ally 46 | . . . . . . 20 . . . . . . . 46 . Total Orders . | . . . . . . . . . . . . . . . . Ally Attacks 19 | . . . . . . 12 . . . . . . . 7 . Total Damage 335 | . . . . . . 139 . . . . . . . 196 . Kills . | . . . . . . . . . . . . . . . . Allies Corrupted . | . . . . . . . . . . . . . . . . Allies Melted . | . . . . . . . . . . . . . . . . X0-1V1 Amusement Gains 193 | . 16 40 . 11 . 3 3 17 . 1 . 7 49 . 46 Good Acts 24 | . . 2 . 5 1 . . 5 . . . 2 1 1 7 Bad Acts 35 | . . 2 . 7 2 1 2 1 . 2 . . 9 3 6 Intel | -11 -10 -10 -10 -8 -7 -6 -6 -6 -6 -5 -5 -5 -4 -4 -4 ------- Run | Yrd Mat Min Sub Mat Fac Fac Low Low Dat Pro Fac DSF Fac Gar Fac Active Infowar (turns) 1174 | . . . . . . 164 140 342 37 180 12 76 223 . . Terrain 378 | . . . . . . 155 . . . . . . 223 . . Jamming 796 | . . . . . . 9 140 342 37 180 12 76 . . . Robot Analysis Total 1 | . 1 . . . . . . . . . . . . . . Derelict Logs Recovered 3 | . . 1 . . . . . 1 . 1 . . . . . Drone Launches . | . . . . . . . . . . . . . . . . Drone Recoveries . | . . . . . . . . . . . . . . . . Exploration | -11 -10 -10 -10 -8 -7 -6 -6 -6 -6 -5 -5 -5 -4 -4 -4 ------------- Run | Yrd Mat Min Sub Mat Fac Fac Low Low Dat Pro Fac DSF Fac Gar Fac Turns Passed 4614 | . 655 836 242 669 245 173 140 350 37 180 12 182 427 74 392 Spaces Moved 4466 | 1 371 481 160 497 356 242 301 655 83 288 26 111 443 117 334 Core 259 | . . . . . . . . . . . . . 22 80 157 Treads 859 | . 255 481 48 . . . . . . . . . . . 75 Legs 547 | 1 116 . 112 280 . . . . . . . . . . 38 Wheels . | . . . . . . . . . . . . . . . . Hover 2801 | . . . . 217 356 242 301 655 83 288 26 111 421 37 64 Flight . | . . . . . . . . . . . . . . . . Fastest Speed 26 | 120 120 160 120 48 40 36 38 35 43 43 45 26 50 36 40 Average Speed 77 | 120 147 160 132 90 41 37 38 39 43 45 45 56 63 46 86 Slowest Speed 225 | 120 160 160 160 180 48 96 38 100 43 107 45 132 80 50 225 Overloaded Moves 8 | . . . . . . . . 8 . . . . . . . Propulsion Burnouts . | . . . . . . . . . . . . . . . . Robots Hopped . | . . . . . . . . . . . . . . . . Potential Cave-ins . | . . . . . . . . . . . . . . . . Cave-ins Triggered . | . . . . . . . . . . . . . . . . Exploration Rate (%) 38 | 2 74 86 14 51 14 8 51 76 68 56 1 49 15 34 15 Regions Visited 15 Branch Regions 6 Pre-discovered Areas 3 | . . 1 . . . . . . 1 1 . . . . . Known Exits Taken 4 | . . . . 1 . . . . . 1 1 . 1 . . Unknown Exits Taken 9 | 1 1 1 1 . 1 1 1 1 1 . . . . . . Scrap Searched 6 | . . 1 . . . . . 3 . 2 . . . . . Spaces Dug . | . . . . . . . . . . . . . . . . Terrain Destroyed 323 | . 34 15 11 15 72 . 40 61 . . . 10 3 . 62 Melee . | . . . . . . . . . . . . . . . . Projectile 5 | . . . . . . . . . . . . 2 3 . . AOE 318 | . 34 15 11 15 72 . 40 61 . . . 8 . . 62 Terrain Rammed 1 | . . . . . . . . . . . . . . 1 . Walls Destroyed . | . . . . . . . . . . . . . . . . Machines Disabled . | . . . . . . . . . . . . . . . . Actions | -11 -10 -10 -10 -8 -7 -6 -6 -6 -6 -5 -5 -5 -4 -4 -4 --------- Run | Yrd Mat Min Sub Mat Fac Fac Low Low Dat Pro Fac DSF Fac Gar Fac Total 5131 | . 425 512 184 624 413 286 313 707 83 311 26 173 543 134 397 Wait 128 | . 6 4 11 30 4 . . 4 . 4 . . 51 13 1 Move 4453 | . 370 480 159 496 355 241 300 654 82 287 26 110 443 116 334 Hop . | . . . . . . . . . . . . . . . . Pick Up 37 | . 7 1 2 11 5 1 1 4 . 1 . . . . 4 Fast Attach 68 | . 1 . . 13 6 6 2 5 1 1 . 12 7 2 12 Attach 37 | . 2 . . 7 4 2 1 3 . 2 . 4 4 2 6 Detach 27 | . . . . 5 5 1 . 5 . 2 . 2 2 . 5 Swap 44 | . 4 2 5 6 4 1 . 5 . . . 12 3 . 2 Drop 47 | . 6 1 3 11 7 4 2 7 . . . 5 1 . . Fire 254 | . 29 16 4 45 23 19 7 20 . 14 . 28 32 . 17 Melee 7 | . . . . . . . . . . . . . . . 7 Ram 2 | . . . . . . . . . . . . . . 1 1 Kick 1 | . . . . . . . . . . . . . . . 1 Crush 15 | . . 8 . . . . . . . . . . . . 7 Escape Stasis . | . . . . . . . . . . . . . . . . Rewire 11 | . . . . . . 11 . . . . . . . . . Trap . | . . . . . . . . . . . . . . . . Miscellaneous . | . . . . . . . . . . . . . . . . Route ------- -11/Scrapyard -10/Materials (discovered 4 exits: [*Mat x2] / [*Min x2]) -10/Mines (discovered 3 exits: [*Mat] / *Exi / *Sub) -10/Subcaves -8/Materials (discovered 2 exits: *Fac x2) -7/Factory -6/Factory -6/Lower Caves -6/Lower Caves (discovered 2 exits: Fac / *Dat) -6/Data Miner -5/Proximity Caves -5/Factory -5/DSF -4/Factory -4/Garrison -4/Factory History --------- Turn | Location | Event 1 | -11/Scrapyard | Discovered new exit (range 0) 1 | -11/Scrapyard | Entered Materials 206 | -10/Materials | Discovered new exit (range 4) 263 | -10/Materials | Discovered new exit (range 15) 313 | -10/Materials | Build established: Mutant 415 | -10/Materials | Discovered new exit (range 6) 450 | -10/Materials | Discovered new exit (range 3) 533 | -10/Materials | Prayed at D.C.S.S. Altar Unit 656 | -10/Materials | Entered Mines 692 | -10/Mines | Heat dissipation permanently improved by X0-1V1 (+15) 704 | -10/Mines | Identified exit to Exiles 716 | -10/Mines | Deemed a non-threat by the Exiles lab entrance 744 | -10/Mines | Learned location of Storage (-9) 822 | -10/Mines | Assembled infested the area 856 | -10/Mines | Met 8R-AWN 871 | -10/Mines | Received a Rocket Launcher from a helpful Derelict 901 | -10/Mines | Core integrity permanently improved by X0-1V1 (+200) 1029 | -10/Mines | X0-1V1 sent hostile S-10 Pest (x3) 1163 | -10/Mines | Discovered new exit (range 7) 1479 | -10/Mines | Discovered new exit (range 9) 1492 | -10/Mines | Entered Subcaves 1493 | -10/Subcaves | Approached by a straggling Scientist 1577 | -10/Subcaves | Ambushed by angry Subdweller bent on revenge 1641 | -10/Subcaves | Discovered new exit (range 13) 1678 | -10/Subcaves | Visited 4L-MR0's lab 1685 | -10/Subcaves | Found Prototype Device 1700 | -10/Subcaves | Found Gun Armor 1734 | -10/Subcaves | Entered Materials 1734 | -8/Materials | Evolved 4 slots: Propulsion x1, Utility x2, Weapon x1 1737 | -8/Materials | Identified Sfc. Transmogrifier 1784 | -8/Materials | Melee accuracy permanently improved by X0-1V1 (+5%) 1820 | -8/Materials | X0-1V1 enhanced Transport squad support 1903 | -8/Materials | Repaired Ion Engine 1966 | -8/Materials | X0-1V1 upgraded hostiles (x1) 2017 | -8/Materials | Lost 3 parts (1p1u1w) 2128 | -8/Materials | X0-1V1 sent someone to clean up after you 2260 | -8/Materials | X0-1V1 mutated your Weapon slot to Power slot 2292 | -8/Materials | Met 7R-MNS 2325 | -8/Materials | X0-1V1 mutated your Utility slot to Propulsion slot 2395 | -8/Materials | Discovered new exit (range 16) 2400 | -8/Materials | Identified exit to Factory 2400 | -8/Materials | X0-1V1 revealed exit location to -7/Factory 2403 | -8/Materials | Entered Factory 2403 | -7/Factory | Evolved 2 slots: Utility x2 2404 | -7/Factory | Caught up to 7R-MNS 2426 | -7/Factory | Garrison activated, responded to threat 2501 | -7/Factory | Attached Gun Armor, gained temporary slots: Weapon x2 2623 | -7/Factory | Discovered new exit (range 16) 2648 | -7/Factory | Entered another Factory area 2648 | -6/Factory | Evolved 2 slots: Propulsion x1, Utility x1 2736 | -6/Factory | Garrison activated, responded to threat 2800 | -6/Factory | Discovered new exit (range 13) 2821 | -6/Factory | Entered Lower Caves 2821 | -6/Lower Caves | Accompanied by 1 ally 2831 | -6/Lower Caves | Attracted the attention of an 0b10 checkpoint 2957 | -6/Lower Caves | Discovered new exit (range 8) 2961 | -6/Lower Caves | Entered another Lower Caves area 2987 | -6/Lower Caves | Encountered a Warlord checkpoint 3012 | -6/Lower Caves | Learned Factory non-interactive machine intel 3027 | -6/Lower Caves | Spotted B-75 Beast 3080 | -6/Lower Caves | Build established: Gunner 3111 | -6/Lower Caves | Found DCF Scrap (11 items) 3134 | -6/Lower Caves | X0-1V1 downgraded hostiles (x4) 3173 | -6/Lower Caves | X0-1V1 whisked you away to safety 3180 | -6/Lower Caves | Identified exit to Factory 3180 | -6/Lower Caves | X0-1V1 revealed exit location to -5/Factory 3222 | -6/Lower Caves | X0-1V1 activates XOMVISION 3281 | -6/Lower Caves | Discovered new exit (range 13) 3311 | -6/Lower Caves | Entered Data Miner 3311 | -6/Data Miner | Discovered new exit (range 6) 3322 | -6/Data Miner | Met Data Miner 3335 | -6/Data Miner | Learned location of Section 7 (-3) 3335 | -6/Data Miner | Acquired the access code to Warlord's prototype stash 3339 | -6/Data Miner | Received God Mode back door access code from Data Miner 3348 | -6/Data Miner | Entered Proximity Caves 3357 | -5/Proximity Caves | Learned location of Armory (-4) 3520 | -5/Proximity Caves | Discovered exit to Factory (range 7) 3528 | -5/Proximity Caves | Entered Factory 3528 | -5/Factory | Evolved 2 slots: Propulsion x1, Utility x1 3529 | -5/Factory | Loaded intel: 227 non-interactive machine locations 3540 | -5/Factory | Identified exit to DSF 3540 | -5/Factory | Entered DSF 3582 | -5/DSF | Additional patrols routed to DSF 3669 | -5/DSF | Lost 6 parts (4u2w) 3697 | -5/DSF | Discovered new exit (range 15) 3722 | -5/DSF | Entered Factory 3722 | -4/Factory | Evolved 2 slots: Utility x1, Weapon x1 3750 | -4/Factory | Lost 3 parts (2p1w) 3904 | -4/Factory | X0-1V1 activates XOMVISION 3928 | -4/Factory | X0-1V1 sent hostile Y-64 Sentinel (x1) 3954 | -4/Factory | Incoming investigation squad redirected 3954 | -4/Factory | X0-1V1 blocked Data Miner access to 0b10 dispatch routers 3987 | -4/Factory | X0-1V1 sent you into danger 4001 | -4/Factory | X0-1V1 sent hostile Mutant (x2) 4056 | -4/Factory | Lost 9 parts (3p2n1u3w) 4143 | -4/Factory | Spotted B-86 Titan 4149 | -4/Factory | Identified exit to Garrison 4149 | -4/Factory | Entered Garrison 4156 | -4/Garrison | Rescued a captive Derelict 4156 | -4/Garrison | Rescued a captive Derelict 4174 | -4/Garrison | Lost 8 parts (4n3u1w) 4176 | -4/Garrison | Triggered checkpoint 4205 | -4/Garrison | Spotted B-86 Titan 4209 | -4/Garrison | Triggered checkpoint 4219 | -4/Garrison | Discovered new exit (range 9) 4223 | -4/Garrison | Entered Factory 4244 | -4/Factory | Core integrity fell below 50% 4308 | -4/Factory | Build established: Mutant 4456 | -4/Factory | Garrison activated, responded to threat 4467 | -4/Factory | X0-1V1 upgraded hostiles (x1) 4468 | -4/Factory | X0-1V1 downgraded hostiles (x1) 4504 | -4/Factory | System corruption reached 10% 4530 | -4/Factory | Lost 9 parts (2p3n1u3w) 4550 | -4/Factory | Core integrity fell below 20% 4578 | -4/Factory | X0-1V1 foreshadows a heat wave 4583 | -4/Factory | System corruption reached 30% 4591 | -4/Factory | Lost 4 parts (2p1n1u) 4606 | -4/Factory | Found Prototype Launcher 4606 | -4/Factory | Identified Com. Tesla Bomb Launcher 4610 | -4/Factory | X0-1V1 enhanced Transport squad support 4615 | -4/Factory | Destroyed by S-27 Virus with Autogun Last Messages --------------- 04573_ S-27 Virus destroyed. 04573_ Recycling Unit disabled. 04577_ X0-1V1 blurs the world around you (-2 sight range). 04578_ X0-1V1: "Let's see how everyone fares in the upcoming heat wave." 04580_ System corrupted: Energy discharge (-35). 04582_ X0-1V1 brushes you with a corrupting influence (+14 system corruption). 04595_ System corrupted: Substantial component data lost. 04597_ Acquired Micro-nuke Launcher. 04598_ Nuclear Reactor explodes. 04598_ S-27 Virus destroyed. 04598_ Nuclear Reactor explodes. 04598_ Matter Pump disabled. 04598_ P-70 Sage destroyed. 04606_ Acquired Prototype Launcher. 04606_ Identified Com. Tesla Bomb Launcher. 04610_ X0-1V1: "ALERT: Updating transport protocols with improved security requirements." 04615_ System corrupted: Component data lost. 04615_ X0-1V1 guffaws! Map ----- +----------------------------------------------------+ | ?????????????????????????????????????????????????? | | ?????????????????????????????????????????????????? | | ?????????????????????????????????????????????????? | | ?????????????????????????????????????????????????? | | ?????????????????????????????????????????????????? | | ?????????????????????????????????????????????????? | | ?????????????????????????????????????????????????? | | ?????????????????????????????????????????????????? | | ?????????????????????????????????????????????????? | | ?????????????????????????????????????????????????? | | ?????????????????????????????????????????????????? | | ?????????????????????????????????????????????????? | | ???????????????????????? ?????????????????????? | | ???????????????????????" ???????????????????? | | ???????????????????????" "?????????????????? | | ???????????????????????" = "?????????????????? | | ??????????????????????? ""????????????????? | | ??????????????????????"" ????????????????? | | ?????????????????????""" ""????????????????? | | ?????????????????????""" """ ? ????????????? | | ???????????????????? """ ?????????????? | | ??????????????????? """" ???????????????? | | ????????????????""" """" ?????????????????? | | ????????????" """" """" ???????????????????? | | ???????????? #????????????????????? | | ???????????? @ #????????????????????? | | ???????????? #????????????????????? | | ???????????? = ! #????????????????????? | | ????????????? #???????????????????? | | ?????????????############## #?????????????????? | | ??????????????????????????# #?????????????????# | | ??????????????????????????# #?????????????????# | | ??????????????????????????# #?????????????????# | | ??????????????????????????# #?????????????????# | | ??????????????????????????# #?????????????????# | | ??????????????????????????# #?????????????????# | | ??????????????????????????# ################ | | ??????????????????????????# | | ??????????????????????????# | | ??????????????????????????# """ """ """ """ | | ??????????????????????????# """ """ """ " | | ??????????????????????????#! """ """ """ "" "" | | ??????????????????????????# | | ??????????????????????????# | | ??????????????????????????#######+########## # ## | | ????????????????????????????????????????????? ?? | | ???????????????????????????????????????????????" " | | ?????????????????????????????????????????????""" " | | ?????????????????????????????????????????????""" " | | ??????????????????????????????????????????????"" " | +----------------------------------------------------+ Best States ------------- Heat Dissipation 131 Energy Generation 35 Energy Capacity 560 Matter Stores 300 Matter Capacity 300 Sight Range 16 Terrain Scan Range 24 Terrain Scan Density 210 Jamming Range 12 Armor Coverage 210 Resistance: EM 15 Phase Shifting 5 Evasion (%) 75 Targeting Accuracy 12 Melee Accuracy 5 Recoil Reduction 2 Offensive Hacking 20 Defensive Hacking 14 Item Schematics ----------------- Lgt. Regenerative Plating | -6/Data Miner | Free Enh. Armored Leg | -6/Data Miner | Free Prc. Energy Filter | -6/Data Miner | Free Combat Drone Bay | -6/Data Miner | Free Imp. Antigrav System | -6/Data Miner | Free Tiamat Missile Launcher | -6/Data Miner | Free Adv. Hardlight Generator | -6/Data Miner | Free Adv. Datajack | -6/Data Miner | Free Robot Schematics ------------------ Y-64 Sentinel | -6/Data Miner | Free S-27 Virus | -6/Data Miner | Free E-15 Imp | -6/Data Miner | Free R-10 Processor | -6/Data Miner | Free Fabricated ------------ Nothing Repaired ---------- Ion Engine | 3% | -8/Materials Studied --------- None Alien Tech Used ----------------- None Achievements -------------- Chaos Is Inevitable Challenges ------------ None Game ------ Seed EnhancedBombStick Manual? 0 Play Time 00:57:56 Cumulative 1324.9 hours Start 2026.06.23 @ 10:29:16 End 2026.06.23 @ 11:53:28 Sessions 3 Manual Loads 0 Difficulty Rogue Special Mode None Game No. 1620 Rogue 1336 Adventurer 124 Explorer 160 Win Type - Total 65 Types 51/0/8/4/1/0/0/1/0/0 Lore% 92 Gallery% 83 Achievement% 71 Wizard Run 0 Options --------- Layout 0 ASCII 0 Keyboard 1 Movement Numpad Keybinds 0 Fullscreen 2 Font 18/X11 Map View 76x50 Zoom Use 0% Tactical HUD 1 Map Filters NONE Filters NONE Steam 1 RUN: 2ff400ab-19a3-4329-97c5-b80ade6c30ad